bitfinex-derivatives/quotes_ETHF0:USTF0_20250308
["timestamp","ask_amount","ask_price","bid_price","bid_amount"]
[1741447304433,1.53813727,2179.7,2179.3,0.6563]
[1741447305329,3.2078,2179.5,2178.8,0.00689069]
[1741447305533,2.6829,2179.4,2178.8,0.65009069]
[1741447305736,5.71655966,2179.4,2178.9,21.7]
[1741447306036,1.53813727,2179.3,2178.9,21.7]
[1741447306236,2.40925966,2179.3,2178.8,3.85789069]
[1741447306428,3.2078,2179.2,2178.8,0.00689069]
[1741447306625,3.2078,2178.9,2178.8,0.00689069]
[1741447307335,3.8199,2178.9,2178.8,0.00689069]
[1741447307541,5.35613416,2178.9,2178.8,0.00689069]
[1741447307731,9.35613416,2178.9,2178.8,0.00689069]
[1741447307941,3.90131418,2178.9,2178.8,0.00689069]
[1741447308138,3.90087483,2178.9,2178.8,0.00689069]
[1741447308336,3.2078,2178.9,2178.8,0.00689069]
[1741447311037,5.36707882,2178.9,2178.8,0.00689069]
[1741447311236,5.99337882,2178.9,2178.8,0.00689069]
[1741447311636,6.86269506,2178.9,2178.8,0.00689069]
[1741447312340,5.99296425,2178.9,2178.8,0.00689069]
[1741447312539,5.9929354,2178.9,2178.8,0.00689069]
[1741447313142,5.15128693,2178.9,2178.8,0.00689069]
[1741447313343,5.99278341,2178.9,2178.8,0.00689069]
[1741447314838,6.49138341,2178.9,2178.8,0.00689069]
[1741447315045,5.99278341,2178.9,2178.8,0.00689069]
[1741447315638,4.4583,2178.9,2178.8,0.00689069]
[1741447316730,5.913,2178.9,2178.8,0.00689069]
[1741447318338,6.60517225,2178.9,2178.8,0.00689069]
[1741447318541,7.44626578,2178.9,2178.8,0.00689069]
[1741447318735,6.60517225,2178.9,2178.8,0.00689069]
[1741447319038,7.51870245,2178.9,2178.8,0.00689069]
[1741447319234,7.51870649,2178.9,2178.8,0.00689069]
[1741447320143,5.913,2178.9,2178.8,0.00689069]
[1741447320441,2.081,2179.1,2178.8,0.00689069]
[1741447321045,3.2078,2179.3,2178.8,0.00689069]
[1741447322550,2.081,2179.4,2178.8,3.21469069]
[1741447323340,3.2078,2179.9,2179.1,3.2078]
[1741447323546,2.081,2180.2,2179.4,3.2078]
[1741447323748,2.081,2180.2,2179.5,0.6442]
[1741447323941,3.6173948,2180.2,2179.5,22.3442]
[1741447324148,3.6173948,2180.2,2179.6,0.6041]
[1741447324448,4.48770198,2180.2,2179.7,0.6215]
[1741447325142,5.13970198,2180.2,2179.7,0.6215]
[1741447325444,0.69358476,2180.1,2179.7,0.6215]
[1741447325645,3.42658476,2180.2,2179.7,0.6215]
[1741447325846,4.26944955,2180.2,2179.7,0.6215]
[1741447327247,3.2078,2180.0,2179.6,0.6041]
[1741447327641,3.2078,2179.7,2178.9,3.2078]
[1741447327847,3.2078,2179.4,2179.0,0.595]
[1741447328343,3.2078,2179.4,2178.9,1.2902]
[1741447328647,3.2078,2179.4,2178.8,0.00689069]
[1741447328648,3.2078,2179.1,2178.8,0.60189069]
[1741447329851,3.2078,2179.1,2178.9,0.6388]
[1741447330751,3.2078,2179.1,2178.8,0.60189069]
[1741447330946,4.7444454,2179.1,2178.8,0.00689069]
[1741447331145,2.0345454,2179.0,2178.8,0.00689069]
[1741447331344,0.07257133,2178.9,2178.2,3.2078]
[1741447331542,3.2078,2178.7,2178.0,1.9071]
[1741447331750,3.2078,2178.4,2178.0,1.9071]
[1741447332439,3.2078,2178.4,2178.0,1.91399069]
[1741447333752,3.90206392,2178.4,2178.0,1.91399069]
[1741447333954,5.2888,2178.4,2178.0,1.91399069]
[1741447336051,3.2078,2178.1,2178.0,0.00689069]
[1741447336455,4.81751843,2178.1,2178.0,0.00689069]
[1741447337150,3.2078,2178.1,2178.0,0.00689069]
[1741447338558,2.081,2178.4,2178.0,0.00689069]
[1741447338751,2.77447404,2178.4,2178.0,0.00689069]
[1741447338954,2.081,2178.4,2178.0,0.00689069]
[1741447339152,2.081,2178.4,2178.1,21.7]
[1741447339651,3.2078,2178.2,2178.0,0.00689069]
[1741447339948,2.081,2178.4,2178.0,0.00689069]
[1741447340149,2.081,2178.4,2178.0,21.70689069]
[1741447342155,2.081,2178.4,2178.1,0.6469]
[1741447342553,2.081,2178.4,2178.2,0.6584]
[1741447343352,2.081,2178.4,2178.0,21.70689069]
[1741447344560,2.081,2178.4,2178.0,0.00689069]
[1741447344761,3.2078,2178.3,2178.0,0.00689069]
[1741447345466,2.081,2178.4,2178.0,0.00689069]
[1741447346660,4.4793,2178.7,2178.0,3.21469069]
[1741447347162,2.081,2178.6,2178.0,3.21469069]
[1741447347364,3.2078,2179.0,2178.0,3.21469069]
[1741447347559,2.081,2178.9,2178.3,3.2078]
[1741447347758,2.081,2178.9,2178.4,1.9439]
[1741447351372,0.00689069,2179.1,2178.6,3.2078]
[1741447357573,0.00689069,2179.1,2178.6,4.12598]
[1741447357774,0.00689069,2179.1,2178.6,3.2078]
[1741447360372,0.00689069,2179.1,2178.7,0.91814]
[1741447360575,0.00689069,2179.1,2178.8,0.6348]
[1741447360775,0.00689069,2179.1,2178.9,0.6477]
[1741447362177,0.00689069,2179.1,2178.9,3.8555]
[1741447362671,0.00689069,2179.1,2178.9,4.22991866]
[1741447363366,0.6047,2179.7,2179.0,0.91801]
[1741447363571,2.08,2179.6,2179.0,0.91801]
[1741447363869,3.2078,2179.9,2178.9,4.22991866]
[1741447363870,2.08,2179.8,2179.2,3.2078]
[1741447364067,2.08,2179.8,2179.3,1.282]
[1741447364266,2.08,2179.8,2179.4,0.6372]
[1741447365270,3.8314,2180.2,2179.4,1.55503]
[1741447365579,5.9114,2180.2,2179.5,4.12559]
[1741447366179,5.9114,2180.2,2179.5,3.2078]
[1741447368379,5.9114,2180.2,2179.5,4.12559]
[1741447369279,3.2078,2180.2,2179.5,3.2078]
[1741447369586,2.08,2180.4,2179.7,0.9177]
[1741447369879,2.08,2180.4,2179.8,0.6561]
[1741447370085,2.08,2180.4,2179.9,1.2192]
[1741447370781,3.2078,2180.2,2179.8,0.6561]
[1741447373685,3.2078,2179.9,2179.3,0.00689069]
[1741447373887,0.6456,2179.8,2179.3,0.00689069]
[1741447374981,0.6038,2179.7,2179.3,0.00689069]
[1741447375873,0.6456,2179.8,2179.3,0.00689069]
[1741447382182,1.34161966,2179.8,2179.3,0.00689069]
[1741447382382,1.34162176,2179.8,2179.3,0.00689069]
[1741447383385,2.18827617,2179.8,2179.3,0.00689069]
[1741447383982,1.34162176,2179.8,2179.3,0.00689069]
[1741447384179,0.6456,2179.8,2179.3,0.00689069]
[1741447384995,2.6828,2179.9,2179.3,0.92476069]
[1741447385188,2.6828,2179.9,2179.5,3.2078]
[1741447387696,0.6038,2179.9,2179.5,3.2078]
[1741447387892,0.6038,2179.9,2179.3,0.00689069]
[1741447388098,1.2529,2179.9,2179.3,0.00689069]
[1741447388488,1.2529,2179.9,2179.5,3.2078]
[1741447389594,3.2078,2179.8,2179.3,0.00689069]
[1741447390104,4.75156835,2179.8,2179.3,0.00689069]
[1741447390312,0.87515043,2179.8,2179.3,0.00689069]
[1741447390712,1.2529,2179.9,2179.3,0.00689069]
[1741447396817,2.42106814,2180.0,2179.3,0.00689069]
[1741447397120,1.2351,2180.5,2179.9,3.2078]
[1741447397308,1.2351,2180.5,2180.0,2.17146]
[1741447397508,1.2351,2180.5,2180.3,3.2078]
[1741447398618,1.2351,2180.5,2180.0,25.52009069]
[1741447398815,0.4983,2180.4,2180.0,25.52009069]
[1741447399017,0.4983,2180.4,2180.0,3.82009069]
[1741447401720,1.2351,2180.5,2180.0,3.82009069]
[1741447402322,1.2351,2180.5,2180.1,0.6004]
[1741447405222,1.2351,2180.5,2180.0,3.82009069]
[1741447405615,1.7329,2180.5,2180.0,3.82009069]
[1741447406917,1.7329,2180.5,2180.0,3.21469069]
[1741447407115,2.56668009,2180.5,2180.0,3.21469069]
[1741447408118,3.2078,2180.3,2180.0,0.00689069]
[1741447408319,2.078,2180.2,2179.5,21.7]
[1741447408619,3.2078,2180.0,2179.4,3.2078]
[1741447408915,0.6153,2179.9,2179.4,3.2078]
[1741447409118,0.6153,2179.9,2179.4,3.8063]
[1741447409321,3.2078,2179.7,2179.1,3.2078]
[1741447409621,4.04158009,2179.7,2179.4,0.00689069]
[1741447411127,0.07273735,2179.6,2178.8,3.8452]
[1741447411425,3.2078,2179.4,2178.8,25.5452]
[1741447411626,2.6733,2179.3,2178.8,25.5452]
[1741447412026,2.6733,2179.3,2178.8,3.85209069]
[1741447412523,2.6733,2179.3,2178.8,3.21469069]
[1741447412728,3.2078,2179.2,2178.8,0.00689069]
[1741447413032,4.04119705,2179.2,2178.8,0.00689069]
[1741447414133,3.2078,2178.9,2178.8,0.00689069]
[1741447414626,5.2858,2178.9,2178.3,4.449]
[1741447414819,0.6326,2178.8,2178.3,4.449]
[1741447415625,0.6326,2178.8,2178.3,3.2078]
[1741447415831,0.6326,2178.8,2178.3,0.00689069]
[1741447415832,0.63949069,2178.8,2178.3,0.00689069]
[1741447417527,3.2078,2178.6,2178.3,0.00689069]
[1741447417730,2.079,2178.5,2178.3,0.00689069]
[1741447417936,2.688,2178.5,2178.3,0.00689069]
[1741447421631,6.688,2178.5,2177.9,3.2078]
[1741447421826,2.688,2178.5,2177.9,3.2078]
[1741447422132,0.07265575,2178.4,2177.9,3.2078]
[1741447422435,2.688,2178.5,2177.8,1.2219]
[1741447422640,3.8599,2178.3,2177.8,1.2219]
[1741447422938,3.8599,2178.3,2177.9,0.00689069]
[1741447425239,3.8458,2178.6,2177.9,3.21469069]
[1741447425436,2.079,2178.5,2178.2,3.2078]
[1741447425637,2.079,2178.5,2178.3,1.2999]
[1741447425833,0.00689069,2178.8,2178.3,1.2999]
[1741447426035,2.08589069,2178.8,2178.4,0.6156]
[1741447427235,2.08589069,2178.8,2178.4,22.3156]
[1741447427932,2.08589069,2178.8,2178.4,0.6156]
[1741447432237,0.00689069,2178.8,2178.4,0.6156]
[1741447433342,3.21469069,2178.8,2178.4,0.6156]
[1741447437538,3.21469069,2178.8,2178.3,0.6577]
[1741447437738,3.2078,2178.4,2178.3,0.6577]
[1741447438042,5.2868,2178.4,2178.3,0.6577]
[1741447439644,2.079,2178.4,2178.3,0.6577]
[1741447446342,5.2868,2178.4,2178.3,0.6577]
[1741447446547,6.12016533,2178.4,2178.1,0.6101]
[1741447446750,5.2868,2178.4,2178.1,0.6101]
[1741447450152,3.2078,2178.4,2178.1,0.6101]
[1741447450751,0.00689069,2178.8,2178.2,3.2078]
[1741447451148,0.00689069,2178.8,2178.3,21.7]
[1741447451345,0.00689069,2178.8,2178.4,0.6498]
[1741447451547,0.00689069,2178.8,2178.5,0.6244]
[1741447451747,0.00689069,2178.8,2178.5,1.2283]
[1741447454749,0.00689069,2178.8,2178.5,4.4361]
[1741447456554,0.00689069,2178.8,2178.6,21.7]
[1741447456756,0.00689069,2178.8,2178.5,4.4361]
[1741447465362,0.66399069,2178.8,2178.5,4.4361]
[1741447468066,0.66399069,2178.8,2178.5,3.2078]
[1741447468258,0.66399069,2178.8,2178.4,1.9644]
[1741447468667,3.2078,2178.7,2178.4,1.9644]
[1741447468966,4.04057588,2178.7,2178.1,3.2078]
[1741447469259,4.53917588,2178.7,2178.1,3.2078]
[1741447469458,4.53917588,2178.7,2178.1,24.9078]
[1741447471470,3.2078,2178.4,2178.1,21.7]
[1741447472159,3.2078,2178.4,2178.0,1.8681]
[1741447474765,0.6155,2178.3,2178.0,1.8681]
[1741447475964,1.44827588,2178.3,2177.9,0.00689069]
[1741447476162,3.2078,2178.1,2177.9,0.00689069]
[1741447476370,2.078,2178.0,2177.9,0.00689069]
[1741447477053,2.9101374,2178.0,2177.9,0.00689069]
[1741447477466,2.90980593,2178.0,2177.9,0.00689069]
[1741447477665,2.078,2178.0,2177.9,0.00689069]
[1741447478667,2.90960002,2178.0,2177.9,0.00689069]
[1741447479163,2.90960002,2178.0,2177.4,23.5342]
[1741447480069,3.2078,2177.8,2177.4,1.8342]
[1741447480266,0.6386,2177.7,2177.4,1.8342]
[1741447480473,0.6386,2177.7,2177.4,1.84109069]
[1741447489574,1.2742,2177.7,2177.4,1.84109069]
[1741447489770,2.078,2177.6,2177.4,0.00689069]
[1741447492467,3.2078,2177.5,2177.4,0.00689069]
[1741447492669,3.2078,2177.5,2177.1,1.9045]
[1741447493369,4.03719186,2177.5,2176.8,21.7]
[1741447493575,4.03719186,2177.5,2176.9,0.6222]
[1741447493775,0.00689069,2177.4,2176.9,0.6267938]
[1741447495471,0.00689069,2177.4,2177.1,0.91881]
[1741447495771,3.2078,2178.2,2177.5,0.91862]
[1741447495975,5.2858,2178.2,2177.6,4.4589]
[1741447496173,3.2078,2178.2,2177.6,4.4589]
[1741447496370,5.2858,2178.2,2177.6,4.4589]
[1741447496772,0.00689069,2178.1,2177.7,0.00689069]
[1741447498781,0.00689069,2178.1,2177.7,0.64579069]
[1741447499677,0.00689069,2178.1,2177.7,1.56434069]
[1741447500483,3.2078,2178.2,2177.8,21.7]
[1741447500980,3.2078,2178.2,2177.7,0.64579069]
[1741447501573,3.21469069,2178.2,2177.7,0.64579069]
[1741447501775,4.04631962,2178.2,2177.7,0.64579069]
[1741447502082,4.67741962,2178.2,2177.7,0.64579069]
[1741447503086,4.04631962,2178.2,2177.7,0.64579069]
[1741447503290,3.21469069,2178.2,2177.7,1.56432069]
[1741447503580,3.21469069,2178.2,2177.7,0.64579069]
[1741447505579,3.21469069,2178.2,2177.7,1.56434069]
[1741447506079,2.077,2179.2,2177.9,3.2078]
[1741447506275,2.077,2179.2,2178.6,3.2078]
[1741447506475,2.077,2179.2,2178.7,1.2398]
[1741447507279,0.6298,2179.1,2178.7,1.2398]
[1741447508986,0.6298,2179.1,2178.6,3.2078]
[1741447508987,3.8376,2179.1,2178.6,3.2078]
[1741447509183,0.07254691,2179.0,2178.6,3.2078]
[1741447509389,0.90454593,2179.0,2178.6,3.2078]
[1741447509688,0.83199902,2179.0,2178.6,3.2078]
[1741447509989,4.66959902,2179.1,2178.6,3.2078]
[1741447510183,0.07254445,2179.0,2178.6,3.2078]
[1741447510384,0.90454347,2179.0,2178.6,3.2078]
[1741447510586,0.83199902,2179.0,2178.6,3.2078]
[1741447510787,0.07254414,2178.9,2178.6,3.2078]
[1741447510983,2.703,2178.8,2178.6,3.2078]
[1741447512286,0.83199902,2179.0,2178.6,3.2078]
[1741447512590,2.076,2179.0,2178.6,3.2078]
[1741447512788,0.6298,2179.1,2178.6,3.2078]
[1741447512789,0.6298,2179.1,2178.7,1.2363]
[1741447512990,0.6298,2179.1,2178.8,0.6597]
[1741447513188,0.00689069,2179.2,2179.0,3.2078]
[1741447513486,0.00689069,2179.2,2178.8,0.6597]
[1741447513690,0.00689069,2179.2,2178.9,0.00689069]
[1741447530203,0.00689069,2179.2,2179.1,3.2078]
[1741447530399,18.741,2180.1,2179.1,3.2078]
[1741447530400,2.7244,2179.9,2179.1,3.2078]
[1741447530603,2.7244,2179.9,2179.6,3.2078]
[1741447531512,2.7244,2179.9,2179.7,0.6055]
[1741447532213,3.55576442,2179.9,2179.7,0.6055]
[1741447532712,3.55576442,2179.9,2179.6,3.2078]
[1741447534017,3.55576442,2179.9,2179.3,4.4598]
[1741447543720,3.2078,2179.7,2179.3,3.2078]
[1741447544221,0.618,2179.6,2179.3,3.2078]
[1741447544414,2.074,2179.5,2179.3,3.2078]
[1741447545517,3.8367,2179.4,2179.0,1.8957]
[1741447545718,4.66806442,2179.4,2179.0,1.8957]
[1741447546114,4.66806442,2179.4,2179.0,1.2427]
[1741447546717,0.07251239,2179.3,2178.9,0.00689069]
[1741447546917,3.2078,2179.1,2178.9,0.00689069]
[1741447547222,0.90387681,2179.3,2178.9,0.00689069]
[1741447547223,2.7108,2179.0,2178.9,0.00689069]
[1741447547717,3.54216442,2179.0,2178.9,0.00689069]
[1741447549019,3.61466503,2179.0,2178.6,0.6321]
[1741447549219,0.6482,2178.9,2178.6,0.6321]
[1741447549423,0.6482,2178.9,2178.5,3.2078]
[1741447550123,0.6482,2178.9,2178.5,3.21469069]
[1741447551216,3.28028749,2178.8,2178.5,0.00689069]
[1741447551420,0.07248512,2178.7,2178.5,0.00689069]
[1741447551721,2.075,2178.6,2178.2,0.6288]
[1741447551918,3.28027779,2178.5,2178.2,0.6288]
[1741447552120,4.63396442,2178.5,2178.2,0.6288]
[1741447552323,0.6484,2178.4,2178.2,0.6288]
[1741447557225,0.6484,2178.4,2178.1,0.00689069]
[1741447560323,3.8026,2178.5,2178.1,0.00689069]
[1741447562023,0.6342,2178.8,2178.1,3.21469069]
[1741447562024,3.842,2178.8,2178.1,3.21469069]
[1741447562229,2.14746927,2178.7,2178.1,3.21469069]
[1741447562425,2.075,2178.7,2178.2,0.6331]
[1741447562622,2.075,2178.7,2178.3,0.6071]
[1741447563528,0.0724789,2178.6,2178.3,0.6071]
[1741447564130,0.609,2178.5,2178.3,0.6071]
[1741447565431,2.075,2178.7,2178.3,0.6071]
[1741447566633,2.075,2178.6,2178.3,0.6071]
[1741447568829,3.8168,2178.8,2178.3,0.6071]
[1741447569132,5.8908,2178.8,2178.4,3.2078]
[1741447569325,0.609,2178.8,2178.5,0.627]
[1741447569526,2.074,2178.7,2178.5,0.627]
[1741447569734,2.074,2178.7,2178.6,0.6158]
[1741447571832,0.00689069,2178.9,2178.6,0.6158]
[1741447572136,0.00689069,2178.9,2178.8,3.2078]
[1741447572929,2.90398107,2179.4,2178.8,7.2078]
[1741447573135,2.90398107,2179.4,2178.8,3.2078]
[1741447573136,2.074,2179.4,2178.8,3.2078]
[1741447574038,0.00689069,2179.3,2178.8,3.2078]
[1741447576129,0.00689069,2179.3,2179.1,3.2078]
[1741447576432,0.00689069,2179.3,2179.2,1.9034]
[1741447580634,0.00689069,2179.3,2179.2,1.2605]
[1741447580941,2.07989069,2179.3,2179.1,3.2078]
[1741447581133,1.2967,2179.2,2179.1,3.2078]
[1741447583239,0.6499,2179.2,2179.1,3.2078]
[1741447583933,2.07989069,2179.3,2179.1,3.2078]
[1741447588633,0.00689069,2179.3,2179.1,3.2078]
[1741447588839,0.00689069,2179.3,2179.2,1.2567]
[1741447594850,0.00689069,2179.3,2179.2,1.8743]
[1741447598339,2.6839,2179.9,2179.2,6.79221]
[1741447598545,2.6839,2179.9,2179.5,3.2078]
[1741447598850,2.6839,2179.9,2179.6,1.2729]
[1741447600665,2.6839,2179.9,2179.5,3.21469069]
[1741447600666,3.2905,2179.9,2179.5,3.21469069]
[1741447603064,0.5052,2179.8,2179.5,3.21469069]
[1741447604972,3.713,2179.8,2179.5,0.00689069]
[1741447605172,4.54300638,2179.8,2179.5,0.00689069]
[1741447605765,4.03780638,2179.8,2179.5,0.00689069]
[1741447606474,0.83000638,2179.8,2179.5,0.00689069]
[1741447607065,3.2905,2179.9,2179.5,0.00689069]
[1741447607878,0.6119,2179.9,2179.5,3.21469069]
[1741447608678,0.00689069,2180.0,2179.5,3.21469069]
[1741447609376,0.00689069,2180.0,2179.6,21.7]
[1741447609574,0.00689069,2180.0,2179.8,3.2078]
[1741447620870,0.83089507,2180.5,2179.9,5.055]
[1741447621071,0.6222,2181.0,2180.4,4.12521]
[1741447621272,0.626,2181.1,2180.7,3.2078]
[1741447622179,0.63289069,2181.1,2180.7,3.58110568]
[1741447622475,0.00689069,2181.1,2181.0,3.2078]
[1741447623783,0.00689069,2181.1,2181.0,7.8033]
[1741447624075,0.626,2181.9,2181.0,10.7873]
[1741447624280,2.6873,2182.2,2181.7,3.2078]
[1741447624477,0.6238,2182.1,2181.7,3.2078]
[1741447624981,3.8316,2182.1,2181.7,3.2078]
[1741447625177,4.66104594,2182.1,2181.7,3.2078]
[1741447625379,3.8316,2182.1,2181.7,3.2078]
[1741447626572,3.2078,2181.8,2181.1,3.2078]
[1741447626776,2.07,2181.7,2181.4,3.2078]
[1741447626979,2.07,2181.8,2181.4,3.2078]
[1741447628481,2.07,2181.8,2181.5,0.5966]
[1741447629073,2.07,2181.8,2181.5,1.1937]
[1741447631688,0.6512,2181.7,2181.5,1.1937]
[1741447632083,0.6512,2181.7,2181.4,3.2078]
[1741447633284,0.6512,2181.7,2181.2,1.2816]
[1741447633784,0.6512,2181.7,2181.4,3.2078]
[1741447635484,2.07,2181.8,2181.4,3.2078]
[1741447636290,2.069,2181.9,2181.4,3.2078]
[1741447637290,2.069,2182.9,2181.7,3.2078]
[1741447637487,1.2788,2182.9,2182.1,3.2078]
[1741447637688,1.2788,2182.9,2182.2,0.6366]
[1741447637985,3.2078,2182.7,2182.2,0.6366]
[1741447638491,2.7071,2182.9,2182.4,3.2078]
[1741447639592,3.2078,2182.7,2182.1,3.21467458]
[1741447641093,2.7071,2182.9,2182.1,3.21467458]
[1741447641594,3.2078,2182.7,2182.1,3.21467458]
[1741447646393,3.2078,2182.4,2182.1,0.00687458]
[1741447646598,3.3214,2182.3,2182.1,0.00687458]
[1741447647997,8.14926527,2182.3,2181.5,3.2078]
[1741447648299,3.2078,2182.0,2181.4,1.3084]
[1741447648497,2.069,2181.9,2181.4,1.3084]
[1741447648700,3.2078,2181.7,2181.4,1.3084]
[1741447649493,3.2078,2181.7,2181.3,0.65137458]
[1741447649699,3.2078,2181.7,2181.3,0.00687458]
[1741447649895,3.2078,2181.4,2181.3,0.00687458]
[1741447650202,5.2768,2181.4,2181.3,0.00687458]
[1741447650399,6.1064601,2181.4,2180.9,3.2078]
[1741447650590,6.1064601,2181.4,2180.8,1.2894]
[1741447650591,2.06313521,2181.3,2180.8,1.2894]
[1741447650792,3.2078,2181.1,2180.5,3.8123]
[1741447650990,2.069,2181.0,2180.5,3.8123]
[1741447651499,2.069,2181.0,2180.6,0.6411]
[1741447652295,2.89860475,2181.0,2180.6,0.6411]
[1741447652496,2.069,2181.0,2180.6,0.6411]
[1741447653100,0.6125,2180.9,2180.6,0.6411]
[1741447653800,3.2078,2180.8,2180.5,0.00687458]
[1741447653994,3.8141,2180.8,2180.5,0.00687458]
[1741447654191,0.07260003,2180.7,2180.5,0.00687458]
[1741447654400,2.069,2180.6,2180.5,0.00687458]
[1741447654602,2.14160003,2180.6,2180.5,0.00687458]
[1741447655895,2.14159948,2180.6,2180.5,0.00687458]
[1741447657806,2.14159893,2180.6,2180.5,0.00687458]
[1741447658500,2.1415989,2180.6,2180.5,0.00687458]
[1741447659708,2.069,2180.6,2180.5,0.00687458]
[1741447660305,2.14159862,2180.6,2180.5,0.00687458]
[1741447660704,2.069,2180.6,2180.5,0.00687458]
[1741447662705,2.14159665,2180.6,2180.5,0.00687458]
[1741447663107,2.14159665,2180.6,2180.0,1.2157]
[1741447663310,3.2078,2180.4,2180.0,1.2157]
[1741447664217,3.21467458,2180.4,2180.0,1.22257458]
[1741447665214,0.00687458,2180.4,2180.0,1.22257458]
[1741447665414,0.00687458,2180.4,2180.1,0.6325]
[1741447666216,3.21467458,2180.4,2180.1,0.6325]
[1741447668820,0.00687458,2180.4,2180.1,0.6325]
[1741447673322,2.07687458,2180.4,2180.1,0.6325]
[1741447675125,2.07687458,2180.4,2180.1,3.8403]
[1741447675422,2.07687458,2180.4,2180.1,0.6325]
[1741447676725,2.07687458,2180.4,2180.1,3.8403]
[1741447679729,2.07687458,2180.4,2180.1,0.6325]
[1741447682625,2.91151006,2180.4,2180.1,0.6325]
[1741447685930,2.07687458,2180.4,2180.1,0.6325]
[1741447687336,2.91151006,2180.4,2180.1,0.6325]
[1741447688835,2.91151006,2180.4,2180.0,1.22257458]
[1741447689039,1.2177,2180.3,2180.0,0.62537458]
[1741447690535,2.05233548,2180.3,2180.0,0.62537458]
[1741447691045,1.2177,2180.3,2180.0,0.62537458]
[1741447694139,2.91151006,2180.4,2180.0,0.62537458]
[1741447694443,2.91151006,2180.4,2180.1,0.652]
[1741447694444,2.07687458,2180.4,2180.1,0.652]
[1741447694845,0.00687458,2180.4,2180.2,0.6144]
[1741447695139,2.069,2180.9,2180.2,0.6144]
[1741447695340,0.83463548,2181.0,2180.8,3.2078]
[1741447695540,2.069,2181.4,2180.9,1.9158]
[1741447695742,2.069,2181.5,2181.1,3.2078]
[1741447696241,2.07587458,2181.5,2181.1,3.21467458]
[1741447697446,0.00687458,2181.5,2181.1,3.21467458]
[1741447700046,0.00687458,2181.5,2181.4,3.2078]
[1741447701250,3.2078,2182.1,2181.4,7.2078]
[1741447701452,5.2768,2182.1,2181.5,1.8589]
[1741447702349,1.22562089,2182.0,2181.5,1.8589]
[1741447702751,1.22562089,2182.0,2181.5,1.2372]
[1741447702941,3.2078,2181.8,2181.4,3.2078]
[1741447703144,2.069,2181.7,2181.4,3.2078]
[1741447704946,1.22562089,2182.0,2181.4,3.2078]
[1741447705249,2.068,2181.9,2181.5,1.2925]
[1741447706549,5.2758,2181.9,2181.5,1.2925]
[1741447707553,5.2758,2181.9,2181.5,0.6342]
[1741447708349,2.068,2181.9,2181.5,0.6342]
[1741447709456,1.22562089,2182.0,2181.5,0.6342]
[1741447709750,0.00682089,2182.0,2181.7,3.2078]
[1741447709953,0.00682089,2182.0,2181.8,0.6155]
[1741447710354,0.00682089,2182.0,2181.8,22.3155]
[1741447711156,1.1986,2182.4,2181.8,22.3155]
[1741447711157,2.068,2182.5,2181.8,26.3155]
[1741447711358,2.068,2182.6,2182.2,3.2078]
[1741447711557,5.2758,2182.7,2182.3,1.2409]
[1741447712058,5.8737,2182.7,2182.3,1.2409]
[1741447712352,5.8737,2182.7,2182.3,0.60137458]
[1741447712861,5.8737,2182.7,2182.3,0.00687458]
[1741447719161,3.8057,2182.7,2182.3,0.00687458]
[1741447719456,2.6677,2182.8,2182.3,0.62247458]
[1741447719959,0.6007,2182.8,2182.5,3.2078]
[1741447720166,0.6007,2182.8,2182.6,0.6475]
[1741447721352,5.2748,2183.0,2182.6,0.6475]
[1741447721560,3.2078,2183.0,2182.6,0.6475]
[1741447722154,3.2078,2183.4,2182.6,0.6475]
[1741447722358,2.067,2183.4,2183.1,3.2078]
[1741447722752,2.067,2183.5,2182.8,3.2078]
[1741447722957,0.634,2183.4,2182.8,3.2078]
[1741447724156,0.634,2183.4,2182.9,1.2318]
[1741447724854,0.634,2183.4,2183.0,21.7]
[1741447725059,0.634,2183.4,2183.1,3.8312]
[1741447725565,2.7048,2183.6,2183.1,3.8312]
[1741447726563,0.6441,2183.5,2183.1,3.8312]
[1741447731258,2.7038,2183.6,2183.1,3.8312]
[1741447731967,3.8456,2183.6,2183.1,3.8312]
[1741447735963,3.8456,2183.6,2182.5,3.90051]
[1741447735964,3.2078,2183.3,2182.8,3.2078]
[1741447736264,1.43961947,2183.6,2182.8,3.2078]
[1741447736265,2.7051,2183.2,2182.8,3.2078]
[1741447736460,0.6391,2183.2,2182.8,3.2078]
[1741447736872,2.066,2183.3,2182.8,3.2078]
[1741447737470,5.2738,2183.3,2182.8,3.2078]
[1741447739173,0.80407177,2183.2,2182.6,1.8832]
[1741447739673,0.80407177,2183.2,2182.6,23.5832]
[1741447740070,0.80407177,2183.2,2182.6,1.8832]
[1741447740373,2.066,2183.3,2182.8,3.2078]
[1741447741074,5.2738,2183.3,2182.8,3.2078]
[1741447741375,0.80462039,2183.2,2182.8,3.2078]
[1741447741574,2.066,2183.3,2182.8,3.2078]
[1741447744674,5.2738,2183.3,2182.8,3.2078]
[1741447745072,0.80532342,2183.2,2182.8,3.2078]
[1741447747173,0.80532342,2183.2,2182.6,23.5832]
[1741447747373,3.2078,2182.9,2182.5,3.2078]
[1741447747570,3.3689,2182.8,2182.3,0.00687458]
[1741447747779,4.17422342,2182.8,2182.3,0.00687458]
[1741447750777,1.46472342,2182.8,2182.3,0.00687458]
[1741447750972,3.53072342,2182.8,2182.3,0.00687458]
[1741447751174,2.87132342,2182.8,2182.5,3.2078]
[1741447751371,0.80532342,2183.1,2182.6,2.80259]
[1741447751573,3.2078,2183.5,2182.9,3.2078]
[1741447751574,0.80532342,2183.4,2182.9,3.2078]
[1741447751785,2.066,2183.5,2183.0,0.6209]
[1741447752078,2.066,2183.5,2183.1,1.2652]
[1741447754184,2.066,2183.5,2183.0,0.6209]
[1741447754383,1.274,2183.4,2183.0,0.6209]
[1741447756277,2.066,2183.6,2183.0,0.6209]
[1741447756683,2.066,2183.6,2183.2,3.2078]
[1741447756886,2.066,2183.6,2183.3,1.2762]
[1741447757886,2.10822342,2183.7,2183.3,1.2762]
[1741447758183,4.17422342,2183.7,2183.4,0.6491]